Cogmind - Beta 17 @@@ ROGUE MODE // 2026.07.26 @ 16:57:49 Player: aperiodic Result: Self-destructed Performance ------------- Evolutions (0) 0 Regions Visited (4) 800 Robots Destroyed (60) 300 Value Destroyed (1378) 1378 Prototype IDs (14) 280 Alien Tech Used (0) 0 Bonus (300) 300 TOTAL SCORE: 3058 Bonus ------- Registered with UFD 300 Cogmind --------- Core Integrity 52/250 Matter 300/300 Energy 100/100 System Corruption 0% Temperature Cool (0) Movement Rolling (150) Ox4 Location -7/Scraptown Parts ------- > --- POWER (1) -------- Subdweller Power Source > --- PROPULSION (2) --- Armored Wheel Armored Wheel > --- UTILITY (2) ------ Huge Storage Unit Makeshift Light Armor Plating > --- WEAPON (2) ------- Subdweller Beam Cannon Makeshift Axe > --- INVENTORY (25) --- Arachnoskeleton Disposable Heat Sink Medium Storage Unit Advanced Weight Redist. System Improved Light Armor Plating Improved Light Armor Plating Makeshift Light Armor Plating Scrap Shield Makeshift Hacking Suite Makeshift Hacking Suite Makeshift System Restoration Module Self-contained Transmogrifier Subdweller Beam Cannon Subdweller Machine Gun Subdweller Machine Gun Battle Cannon EMP Blaster Subdweller Shrapnel Launcher Subdweller Shrapnel Launcher Piercing Trap Peak State ------------ > --- POWER ------------ Light Ion Engine Light Nuclear Core > --- PROPULSION ------- Light Treads Armored Wheel Armored Wheel Armored Wheel > --- UTILITY ---------- Seismic Detector Tower Shield Recalibrator > --- WEAPON ----------- Subdweller Laser Subdweller Beam Cannon Heavy Hammer > --- INVENTORY -------- Huge Storage Unit Makeshift Hacking Suite Beam Cannon EMP Blaster Multitool [Rating: 43] Favorites ----------- Power Light Nuclear Core Engine Subdweller Power Source Power Core Light Nuclear Core Propulsion Armored Wheel Treads Light Treads Wheel Armored Wheel Utility Huge Storage Unit Device Seismic Detector Storage Huge Storage Unit Protection Makeshift Light Armor Plating Weapon Subdweller Beam Cannon Energy Gun Beam Rifle Energy Cannon Subdweller Beam Cannon Ballistic Gun Light Assault Rifle Special Weapon Mining Laser Impact Weapon Heavy Hammer Slashing Weapon Makeshift Axe Build | -11 -10 -10 -7 -7 ------- Run | Yrd Mat Sub Rec Scr Slots Evolved . | . . . . . Power . | . . . . . Propulsion . | . . . . . Utility . | . . . . . Weapon . | . . . . . Parts Attached 42 | 7 16 17 2 . Power 6 | 1 2 3 . . Engine 4 | 1 . 3 . . Core 2 | . 2 . . . Reactor . | . . . . . Propulsion 11 | 2 6 2 1 . Treads 3 | . 2 1 . . Leg . | . . . . . Wheel 8 | 2 4 1 1 . Hover . | . . . . . Flight . | . . . . . Utility 11 | 2 1 8 . . Device 3 | 1 . 2 . . Storage 3 | 1 1 1 . . Processor . | . . . . . Hackware . | . . . . . Protection 5 | . . 5 . . Artifact . | . . . . . Weapon 14 | 2 7 4 1 . Energy Gun 5 | 1 3 1 . . Energy Cannon 3 | . 1 2 . . Ballistic Gun 2 | 1 1 . . . Ballistic Cannon . | . . . . . Launcher . | . . . . . Special Weapon 1 | . 1 . . . Impact Weapon 2 | . 1 1 . . Slashing Weapon 1 | . . . 1 . Piercing Weapon . | . . . . . Special Melee Weapon . | . . . . . Unidentified Prototypes . | . . . . . Parts Lost 5 | . 2 2 1 . Power 2 | . 1 1 . . Propulsion 1 | . . . 1 . Utility 1 | . . 1 . . Weapon 1 | . 1 . . . Highest Loss Streak 1 | . 1 1 1 . To Critical Strikes . | . . . . . Average Backups 15 | 4 21 10 19 19 Power . | . 1 . . . Propulsion 2 | 2 6 1 1 1 Utility 6 | . 4 4 10 10 Weapon 5 | . 8 3 7 7 Tool/Special . | . . . . . Unused Backups 38 | 2 4 14 1 17 Power . | . . . . . Propulsion 6 | 2 1 2 . 1 Utility 15 | . 1 6 . 8 Weapon 15 | . 2 5 1 7 Tool/Special 2 | . . 1 . 1 Average Slot Usage (%) 95 | . 99 91 98 100 Engine 7 | . 1 4 14 14 Core 6 | . 12 8 . . Treads 1 | . 2 1 . . Wheel 26 | . 25 26 26 28 Device 7 | . 14 9 . . Storage 10 | . 14 6 14 14 Protection 7 | . . 6 14 14 Energy Gun 5 | . 21 2 . . Energy Cannon 10 | . 1 11 14 14 Impact Weapon 5 | . 2 11 . . Slashing Weapon 4 | . . . 13 14 Peak Build Rating 43 | 7 17 43 25 25 Average Rating 21 | 5 14 22 24 24 On Entrance 14 | . 7 17 23 25 Avg Prop Armor Cover (%) 2 | . . 2 . . Naked Turns . | . . . . . Heaviest Build 101 | 13 92 101 100 100 Greatest Support 40 | 20 40 36 24 24 Greatest Overweight (x) 8 | 1 4 4 8 4 Average Overweight (x) 2 | . 3 1 4 4 Largest Inventory Capacity 25 | 8 25 25 25 25 Average Capacity 19 | 7 24 13 25 25 Most Carried 25 | 8 25 25 25 25 Average Carried 18 | 4 21 12 24 24 Final Capacity 25 | 8 25 25 25 25 Final Carried 25 | 8 25 25 25 25 Class Distribution -------------------- 57% | Mutant 30% | Commander-Mutant 8% | Scavenger-Mutant 3% | Subdweller-Mutant Dominant Class ---------------- Mutant | -10/Materials Mutant | -10/Subcaves Commander-Mutant | -7/Recycling Commander-Mutant | -7/Scraptown Resources | -11 -10 -10 -7 -7 ----------- Run | Yrd Mat Sub Rec Scr Matter Collected 1344 | 280 600 444 20 . Remotely . | . . . . . Salvage Created 2207 | 200 921 733 353 . Parts 123 | 18 45 46 14 . Haulers Intercepted 2 | . 2 . . . Recyclers Shooed . | . . . . . Parts Field Recycled . | . . . . . Retrieved Matter . | . . . . . Parts Self-Destructed 17 | . . 17 . . Prevented 1 | . . 1 . . Parts Restored . | . . . . . Kills | -11 -10 -10 -7 -7 ------- Run | Yrd Mat Sub Rec Scr Combat Hostiles Destroyed 35 | . 13 19 3 . Melee 7 | . 1 4 2 . Guns 10 | . 9 1 . . Cannons 12 | . 2 9 1 . Classes Destroyed 13 | 3 6 2 2 . Worker 6 | 1 5 . . . Builder 2 | . . . 2 . Tunneler 6 | 5 1 . . . Hauler 2 | . 2 . . . Recycler 4 | 1 1 . 2 . Mechanic 1 | . 1 . . . Operator 1 | . 1 . . . Watcher 3 | . 3 . . . Swarmer 6 | . 2 4 . . Grunt 14 | . 11 2 1 . Brawler 1 | . . . 1 . Sentry 2 | . . 1 1 . Subdweller 12 | . . 12 . . Best Kill Streak 6 | 6 5 3 2 . Combat Bots Only 3 | . 3 3 2 . Max Kills in Single Turn 1 | 1 1 1 1 . Gunslinging . | . . . . . Exploded . | . . . . . Melee 1 | . 1 1 1 . Uniques/NPCs Destroyed . | . . . . . Combat | -11 -10 -10 -7 -7 -------- Run | Yrd Mat Sub Rec Scr Hostile Shots Fired 190 | . 82 49 59 . Missed 46 | . 16 15 15 . Hits 144 | . 66 34 44 . Projectile 144 | . 66 34 44 . Critical Strikes 1 | . . 1 . . Damage Taken 1769 | . 689 711 369 . Core 198 | . 59 67 72 . Absorbed by Shields . | . . . . . Core Remaining (%) 100 | 100 . . . . Volleys Fired 121 | 10 66 41 4 . Largest 2 | 2 2 2 1 . Hottest 160 | 60 112 160 80 . Shots Fired 196 | 20 124 48 4 . Gun 122 | 20 98 4 . . Cannon 70 | . 22 44 4 . Launcher . | . . . . . Special 4 | . 4 . . . Kinetic 33 | 10 23 . . . Thermal 163 | 10 101 48 4 . Explosive . | . . . . . Electromagnetic . | . . . . . Robot Hit Streak 15 | 6 9 15 3 . Robot Miss Streak 6 | 2 6 1 1 . Penetration Max . | . . . . . Secondary Targets . | . . . . . Shots Hit Robots 161 | 10 86 48 17 . Core Hits 61 | 8 33 14 6 . Critical Kills 3 | . . 2 1 . Critical Parts Destroyed 2 | . 2 . . . Critical Strikes 11 | . 7 3 1 . Burn 5 | . 5 . . . Smash 6 | . 2 3 1 . Melee Attacks 114 | . 16 81 17 . Impact 104 | . 16 81 7 . Slashing 10 | . . . 10 . Piercing . | . . . . . Sneak Attacks 11 | . 5 1 5 . Combat Hostiles 1 | . . 1 . . Follow-up Attacks . | . . . . . Damage Inflicted 4194 | 108 1802 1552 732 . Guns 1003 | 108 855 40 . . Cannons 1066 | . 192 795 79 . Explosions . | . . . . . Melee 2125 | . 755 717 653 . Ramming . | . . . . . Kinetic 151 | 19 132 . . . Thermal 1918 | 89 915 835 79 . Explosive . | . . . . . Electromagnetic . | . . . . . Impact 1642 | . 755 717 170 . Slashing 483 | . . . 483 . Piercing . | . . . . . Highest Corruption 2 | . 2 2 . . Average Corruption 1 | . 1 1 . . Corruption Purged 2 | . . 2 . . Corruption Blocked . | . . . . . Effects 12 | . 5 7 . . Matter Fused 4 | . 3 1 . . Heat Flow Errors 1 | . . 1 . . Energy Discharges 1 | . . 1 . . Data Loss (minor) 3 | . 1 2 . . Data Loss (major) 1 | . 1 . . . Misfires 1 | . . 1 . . Alerts 1 | . . 1 . . Overload Shots . | . . . . . Overflow Damage 423 | . 216 76 131 . Projectiles 9 | . . 9 . . Explosions . | . . . . . Melee 414 | . 216 67 131 . Knockbacks 6 | . 1 5 . . Impact 6 | . 1 5 . . Kinetic . | . . . . . Secondary . | . . . . . Self-Inflicted Damage . | . . . . . Shots . | . . . . . Rammed . | . . . . . Targets Rammed . | . . . . . Kicked . | . . . . . Crushed . | . . . . . Highest Temperature 327 | 60 321 327 120 . Average Temperature 92 | 28 109 63 57 . Received Heat Transfer 725 | . 279 341 105 . Siege Activations . | . . . . . Martial Activations . | . . . . . Shielding Activations . | . . . . . Robots Disrupted . | . . . . . Combat Hostiles . | . . . . . Robots Corrupted 7 | . 2 5 . . Combat Hostiles 6 | . 1 5 . . Parts Fried 10 | . 2 8 . . Impact Corruptions 15 | . 9 6 . . Robots Melted . | . . . . . Combat Hostiles . | . . . . . Parts Melted 10 | . 7 3 . . Heat Transferred 4061 | 200 2627 1123 111 . Parts Sabotaged . | . . . . . Parts Stolen . | . . . . . Parts Stripped . | . . . . . Power Chain Reactions . | . . . . . Alert | -11 -10 -10 -7 -7 ------- Run | Yrd Mat Sub Rec Scr Maximum Alert Level . | . . . . . Low Security (%) 100 | 100 100 . 100 . Level 1 . | . . . . . Level 2 . | . . . . . Level 3 . | . . . . . Level 4 . | . . . . . Level 5 . | . . . . . High Security . | . . . . . Max Security . | . . . . . Peak Influence 75 | 20 75 . 52 . Initial 52 | . 3 . 52 . Average 12 | 6 15 . 8 . Influence Increases 830 | 35 422 240 133 . Destroy 0b10 Robot/C 460 | . 260 140 60 . Destroy 0b10 Robot/NC 125 | 35 70 . 20 . Destroy Leader 80 | . 70 10 . . Allied During Kill 8 | . . . 8 . Destroy Structure 7 | . 7 . . . Lose Combat Pursuer 150 | . 15 90 45 . Influence Decreases 830 | 30 427 129 244 . Entered New Map 61 | . 2 . 59 . Time Decay 718 | 30 405 109 174 . Lost Part 50 | . 20 20 10 . Lost Ally 1 | . . . 1 . Squads Dispatched 3 | . 3 . . . Investigation 1 | . 1 . . . Extermination . | . . . . . Reinforcement 2 | . 2 . . . Assault . | . . . . . Garrison . | . . . . . Intercept . | . . . . . Searches Triggered . | . . . . . Construction Impeded . | . . . . . Haulers Reinforced . | . . . . . Active Scanning Responses . | . . . . . Cargo Convoy Interrupts . | . . . . . Stealth | -11 -10 -10 -7 -7 --------- Run | Yrd Mat Sub Rec Scr Distress Signals . | . . . . . Communications Jammed . | . . . . . Distress Signals . | . . . . . Times Spotted 48 | . 21 22 5 . Peak Tracking Total 4 | . 3 4 2 . Tactical Retreats 8 | . 1 4 3 . Traps | -11 -10 -10 -7 -7 ------- Run | Yrd Mat Sub Rec Scr Traps Triggered 4 | . 3 1 . . Indirectly . | . . . . . Trap Hack Attempts . | . . . . . Triggered . | . . . . . Disarmed . | . . . . . Reprogrammed . | . . . . . Reused . | . . . . . Traps Extracted . | . . . . . Installed . | . . . . . Triggered . | . . . . . Most Traps Carried 1 | . . 1 1 1 Machines | -11 -10 -10 -7 -7 ---------- Run | Yrd Mat Sub Rec Scr Machines Disabled 1 | . . 1 . . Max in Single Turn 1 | . . 1 . . Machines Repaired . | . . . . . Machines Dismantled . | . . . . . Machines Sabotaged . | . . . . . Overloaded Fab Kills . | . . . . . Hacking | -11 -10 -10 -7 -7 --------- Run | Yrd Mat Sub Rec Scr Machines Accessed 7 | . . 2 . 5 Terminals . | . . . . . Fabricators . | . . . . . Repair Stations . | . . . . . Recycling Units . | . . . . . Scanalyzers . | . . . . . Garrison Access . | . . . . . Total Hacks 25 | . . 4 . 21 Successful 25 | . . 4 . 21 Failed . | . . . . . Catastrophic . | . . . . . Database Lockouts . | . . . . . Manual . | . . . . . Terminals . | . . . . . Fabricators . | . . . . . Repair Stations . | . . . . . Recycling Units . | . . . . . Scanalyzers . | . . . . . Garrison Access . | . . . . . Terminal Hacks 25 | . . 4 . 21 Record 17 | . . 3 . 14 Robot Analysis 7 | . . . . 7 Proto ID Catalog 1 | . . 1 . . Fabricator Hacks . | . . . . . Repair Station Hacks . | . . . . . Recycling Unit Hacks . | . . . . . Scanalyzer . | . . . . . Garrison Access Hacks . | . . . . . Unauthorized Hacks . | . . . . . Terminals . | . . . . . Fabricators . | . . . . . Repair Stations . | . . . . . Recycling Units . | . . . . . Scanalyzers . | . . . . . Garrison Access . | . . . . . Data Cores Recovered . | . . . . . Used . | . . . . . Hacking Detections . | . . . . . Full Trace Events . | . . . . . Feedback Events . | . . . . . Feedback Blocked . | . . . . . Robot Schematics Acquired . | . . . . . Robots Built . | . . . . . Authchips . | . . . . . Time . | . . . . . Total Robot Build Rating . | . . . . . Part Schematics Acquired . | . . . . . Parts Built . | . . . . . Authchips . | . . . . . Time . | . . . . . Total Part Build Rating . | . . . . . Part Studies Acquired . | . . . . . Parts Repaired . | . . . . . Time . | . . . . . Parts Recycled . | . . . . . Recycled Matter . | . . . . . Retrieved Matter . | . . . . . Retrieved Components . | . . . . . Parts Scanalyzed . | . . . . . Part Schematics Acquired . | . . . . . Parts Damaged . | . . . . . Bothacking | -11 -10 -10 -7 -7 ------------ Run | Yrd Mat Sub Rec Scr Used RIF Installer . | . . . . . Robots Hacked . | . . . . . Non-combat . | . . . . . Combat . | . . . . . Robot Hacks Applied . | . . . . . Relay Couplers Released . | . . . . . Fabnet Peak Effective % . | . . . . . Robots Rewired 10 | . . . 10 . Allies Hacked . | . . . . . Hacks Repelled . | . . . . . Allies | -11 -10 -10 -7 -7 -------- Run | Yrd Mat Sub Rec Scr Total Allies 10 | . . . 10 . Largest Group 10 | . . . 10 9 Highest-Rated Group 143 | . . . 143 133 Highest-Rated Ally 32 | . . . 32 32 Total Orders 1 | . . . . 1 STAY 1 | . . . . 1 Ally Attacks 3 | . . . 3 . Total Damage 33 | . . . 33 . Kills . | . . . . . Allies Corrupted . | . . . . . Allies Melted . | . . . . . Intel | -11 -10 -10 -7 -7 ------- Run | Yrd Mat Sub Rec Scr Active Infowar (turns) 4649 | 34 1978 2637 . . Seismic 4649 | 34 1978 2637 . . Robot Analysis Total 7 | . . . . 7 Derelict Logs Recovered 7 | . . 2 . 5 Drone Launches . | . . . . . Drone Recoveries . | . . . . . Exploration | -11 -10 -10 -7 -7 ------------- Run | Yrd Mat Sub Rec Scr Turns Passed 9642 | 110 1978 4430 1168 1956 Spaces Moved 5791 | 74 1074 2725 634 1284 Core 1 | 1 . . . . Treads 1 | . 1 . . . Legs . | . . . . . Wheels 5789 | 73 1073 2725 634 1284 Hover . | . . . . . Flight . | . . . . . Fastest Speed 50 | 50 80 90 150 150 Average Speed 128 | 80 135 111 153 150 Slowest Speed 320 | 95 320 150 210 150 Overloaded Moves . | . . . . . Propulsion Burnouts . | . . . . . Robots Hopped . | . . . . . Potential Cave-ins . | . . . . . Cave-ins Triggered . | . . . . . Exploration Rate (%) 73 | 3 97 88 94 87 Regions Visited 4 Branch Regions 3 Pre-discovered Areas 6 | . . 1 . 5 Known Exits Taken . | . . . . . Unknown Exits Taken 4 | 1 1 1 1 . Scrap Searched 15 | . . 10 . 5 Spaces Dug 13 | . 4 9 . . Terrain Destroyed 19 | . 5 14 . . Melee 6 | . 1 5 . . Projectile 13 | . 4 9 . . AOE . | . . . . . Terrain Rammed . | . . . . . Walls Destroyed . | . . . . . Machines Disabled . | . . . . . Actions | -11 -10 -10 -7 -7 --------- Run | Yrd Mat Sub Rec Scr Total 7594 | 106 1433 3939 802 1314 Wait 1271 | 2 208 994 37 30 Move 5787 | 73 1073 2724 633 1284 Hop . | . . . . . Pick Up 81 | 11 26 41 3 . Fast Attach 23 | 7 1 15 . . Attach 7 | . 2 4 1 . Detach 2 | . 1 1 . . Swap 32 | . 28 3 1 . Drop 49 | 3 12 32 2 . Fire 121 | 10 66 41 4 . Melee 114 | . 16 81 17 . Ram . | . . . . . Kick . | . . . . . Crush . | . . . . . Escape Stasis . | . . . . . Rewire 104 | . . . 104 . Trap . | . . . . . Miscellaneous 3 | . . 3 . . Route ------- -11/Scrapyard -10/Materials (discovered 6 exits: [*Mat x3] / [*Min x2] / *Sub) -10/Subcaves (discovered 3 exits: [*Mat x2] / [*Rec]) -7/Recycling (discovered 2 exits: [*Fac] / *Scr) -7/Scraptown (discovered 1 exit: [*Fac]) History --------- Turn | Location | Event 17 | -11/Scrapyard | Discovered new exit (range 15) 111 | -11/Scrapyard | Entered Materials 334 | -10/Materials | Build established: Mutant 435 | -10/Materials | Discovered new exit (range 15) 507 | -10/Materials | Discovered new exit (range 15) 900 | -10/Materials | Discovered new exit (range 4) 1040 | -10/Materials | Discovered new exit (range 9) 1620 | -10/Materials | Discovered new exit (range 8) 2077 | -10/Materials | Discovered new exit (range 9) 2089 | -10/Materials | Entered Subcaves 2125 | -10/Subcaves | A swath of the cavern ceiling suddenly collapsed 2181 | -10/Subcaves | Learned location of Zion (-7) 2181 | -10/Subcaves | Met a Zionite searching for "candidates" 2187 | -10/Subcaves | Learned Materials emergency access door positions 2495 | -10/Subcaves | Shifting Twisted Machinery released Mak. System Restoration Module 2506 | -10/Subcaves | Shifting Twisted Machinery released Battle Rifle 3132 | -10/Subcaves | Visited 4L-MR0's lab 3234 | -10/Subcaves | Found Tower Shield 3235 | -10/Subcaves | Attached Tower Shield, gained temporary slots: Power, Propulsion x2, Utility x2, Weapon x2 3336 | -10/Subcaves | A swath of the cavern ceiling suddenly collapsed 3344 | -10/Subcaves | Discovered new exit (range 7) 3788 | -10/Subcaves | Learned Materials stockpile data 3870 | -10/Subcaves | Discovered new exit (range 14) 3961 | -10/Subcaves | Build established: Scavenger-Mutant 4635 | -10/Subcaves | Build established: Mutant 5063 | -10/Subcaves | A Subdweller sparked back to life 5063 | -10/Subcaves | A Subdweller sparked back to life 5080 | -10/Subcaves | Found Arachnoskeleton 5287 | -10/Subcaves | Discovered new exit (range 3) 5615 | -10/Subcaves | Shifting Twisted Machinery released Sub. Shrapnel Launcher 5623 | -10/Subcaves | Shifting Twisted Machinery released Mak. System Restoration Module 5682 | -10/Subcaves | Visited Clippyterm 5771 | -10/Subcaves | Build established: Subdweller-Mutant 5809 | -10/Subcaves | Disturbed a concealed Subdweller 5817 | -10/Subcaves | Core integrity fell below 50% 5997 | -10/Subcaves | Shifting Twisted Machinery released Flamer 6132 | -10/Subcaves | Build established: Mutant 6378 | -10/Subcaves | Found Prototype Device 6519 | -10/Subcaves | Entered Recycling 7029 | -7/Recycling | Build established: Commander-Mutant 7177 | -7/Recycling | Discovered new exit (range 8) 7618 | -7/Recycling | Scanned before Scraplab entrance 7644 | -7/Recycling | Entered Scraplab 7657 | -7/Recycling | Discovered new exit (range 3) 7687 | -7/Recycling | Entered Scraptown 7687 | -7/Scraptown | Accompanied by 9 allies 7977 | -7/Scraptown | Discovered new exit (range 5) 8110 | -7/Scraptown | Scanned Subdweller tech in exchange for log data 8113 | -7/Scraptown | Learned Research emergency access door positions 8115 | -7/Scraptown | Learned location of 1 exit from Research 8116 | -7/Scraptown | Learned location of Quarantine (-2) 8118 | -7/Scraptown | Learned location of Warlord (-4) 8119 | -7/Scraptown | Learned location of Armory (-4) 8143 | -7/Scraptown | Heard Great Nut preacher, LISTEN AND RECITE! 8164 | -7/Scraptown | Visited Cave Peace 8209 | -7/Scraptown | Visited CR-KLE's Repair Center 8236 | -7/Scraptown | Visited Shadow of the Wyrm 8442 | -7/Scraptown | Visited IN-MT5's Study 8487 | -7/Scraptown | Visited UFD Registry 8487 | -7/Scraptown | Registered with UFD as "Scrapdrive" 8724 | -7/Scraptown | Visited Junk Repository 8761 | -7/Scraptown | Visited Abandonware Association 8779 | -7/Scraptown | Learned abandonware demo "HACKBUD.EXE" 8779 | -7/Scraptown | Learned abandonware demo "MELTYB.EXE" 8815 | -7/Scraptown | Visited Science Testing Area 8836 | -7/Scraptown | Visited Scrap Suit Storage 8856 | -7/Scraptown | Visited Derelict Rescue Squad 8877 | -7/Scraptown | Visited Research Penetration Think Tank 8907 | -7/Scraptown | Visited LU-1G1's Boring Crew 8956 | -7/Scraptown | Visited Chapter 10 9013 | -7/Scraptown | Visited Analyses Database 9169 | -7/Scraptown | Delivered Scrap Shield to a Scientist 9526 | -7/Scraptown | Visited Awakened 9550 | -7/Scraptown | Visited Cyclists 9571 | -7/Scraptown | Entered Cyclist Reading Room 9600 | -7/Scraptown | Visited TADAMA 9643 | -7/Scraptown | Self-destructed Last Messages --------------- more interested in trade and transport rather than harvesting components, per se. --Fibertop >>Record "Tech Extrapolator" This advanced technology is not of our own making, nor do we know its true origins. Some cycles ago a sample was reportedly found conspicuously left in the open in a nearby cave. Although wary at first, Scientists discovered this device's ability to develop new technologies far outstripped their own methods, and they've happily adopted it as a permanent part of their build. --Fibertop >>Record "Eat Nuts!" QC needs to stop this anti-Bob discrimination. All my Bob entries keep getting deleted. You cannot erase Bob! --Loosecoil 09600_ LOCAL NARROWCAST: TADAMA. YNGWTM. Map ----- +----------------------------------------------------+ | | | | | ###### ########### ##########"" """"### | | ###### ######????## ##????????#" [%"#?? | | #""""" """""#####?# #########?#" ]""#?? | | #" " " #?# """"""""#?#" """#?? | | #""" ""#" " " "### ### " ""#?#" """#?? | | #""" "#" " " "#"" """ "#?#"""""""#?? | | #""" "#""""" """""#" """ " ""#?#########?? | | #"" "###### ######" " """"""""#???????????? | | #? "#""""" """""#" ##"""####??????#####? | | #?"" ""#" " " "#" "" " ################X""#? | | #?## ###" " " "#" " #??# #" "#? | | #??# " " "#"""""" #??# #" ###? | | #??#####""""" """""####### #??# """"" #X #? | | ##?????###### ######?????# #??# """"" ##" # #? | | ############ ############ #??# """"" ##### ## | | #??# #" | | #??# #" | | ######################### h#??# #" | | ##??????????????????????# #??# # | | ########???????????????### ########## ##### #### | | """""""#???????????????# | | " "#???????????????# | | ! / "#??????########## | | " ]]! "#??????# # @ | | " [ [ "#??????# """ # | | " !=] "#??????# """" # ################# | | " ] ! "#??????# X""" # #???????????????# | | " !* "#??????# """" # #?????########### | | " "#??????# """ # #?????#"""""""""# | | """" ""#??????# #?????#" | | #### ###??????########## #?????#" # | | #### ###???????????????# #?????#" """ # | | """" ""#???????????????# #?????#" """ # | | " "#????????######## #?????#" """ # | | " "" "#????????"""" # #?????#" # | | " "" "#???????""""" # #??????" # | | " "#???????""""" # #?????#"""""""""# | | ""#???????""""" #?????########### | | " """""#???????""""" # #???????????????# | | """""""#?????""" # #???????????????# | | """"""??????#"""""" # #???????????????# | | ######??????#""""""" # ################# | | ########???????""""" # | | #"""X""#???????""""" # | | #" "#???????""""" # | | #" "#?????????####### | | #" "#?????????####### | | #" "#????????## | +----------------------------------------------------+ Best States ------------- Heat Dissipation 25 Energy Generation 19 Energy Capacity 250 Matter Stores 450 Matter Capacity 450 Sight Range 16 Terrain Scan Density 10 Armor Coverage 2000 Evasion (%) 44 Recoil Reduction 2 Item Schematics ----------------- None Robot Schematics ------------------ None Fabricated ------------ Nothing Repaired ---------- Nothing Studied --------- None Alien Tech Used ----------------- None Achievements -------------- None Challenges ------------ None Game ------ Seed DecoderInsulatedMediator Manual? 0 Play Time 01:15:33 Cumulative 774.4 hours Start 2026.07.26 @ 15:36:03 End 2026.07.26 @ 16:57:49 Sessions 1 Manual Loads 0 Difficulty Rogue Special Mode None Game No. 272 Rogue 268 Adventurer 4 Explorer 0 Win Type - Total 21 Types 9/2/6/0/0/0/2/2/0/0 Lore% 88 Gallery% 76 Achievement% 60 Wizard Run 0 Options --------- Layout 1 ASCII 0 Keyboard 0 Movement Arrows Keybinds 0 Fullscreen 1 Font 40/SmallcapsGlow Map View 50x40 Zoom Use 0% Tactical HUD 1 Map Filters NONE Filters NONE Steam 1 RUN: 4c84c3c0-3438-4ac3-9853-d0e611617179